Cogmind - Beta 10 @@@ ROGUE MODE // 2020.09.21 @ 11:40:42 Player: Tmvn Result: Destroyed by G-47 Trooper with Particle Gun Performance ------------- Evolutions (0) 0 Regions Visited (1) 200 Robots Destroyed (8) 40 Value Destroyed (110) 110 Prototype IDs (0) 0 Alien Tech Used (0) 0 Bonus (0) 0 TOTAL SCORE: 350 Bonus ------- None Cogmind --------- Core Integrity 0/250 Matter 300/300 Energy 250/250 System Corruption 0% Temperature Cool (9) Movement Core (150) Ox2 Location -10/Materials Parts ------- > --- POWER (1) -------- Ion Engine > --- PROPULSION (2) --- (None) > --- UTILITY (2) ------ Small Storage Unit Signal Interpreter > --- WEAPON (2) ------- (None) > --- INVENTORY (6) ---- Light Ion Engine Wheel Compact Wheel Small Storage Unit Medium Matter Pod (67) Peak State ------------ > --- POWER ------------ Ion Engine > --- PROPULSION ------- Aluminum Leg Aluminum Leg > --- UTILITY ---------- Small Storage Unit Small Storage Unit > --- WEAPON ----------- Small Laser Small Laser > --- INVENTORY -------- Light Ion Engine Light Treads Light Treads Wheel Compact Wheel EM Pulse Gun [Rating: 7] Favorites ----------- Power Ion Engine Engine Ion Engine Propulsion Aluminum Leg Leg Aluminum Leg Utility Small Storage Unit Storage Small Storage Unit Processor Signal Interpreter Weapon Small Laser Energy Gun Small Laser Build | -11 -10 ------- Run | Scr Mat Slots Evolved . | . . Power . | . . Propulsion . | . . Utility . | . . Weapon . | . . Parts Attached 2 | . 2 Power . | . . Engine . | . . Core . | . . Reactor . | . . Propulsion . | . . Treads . | . . Leg . | . . Wheel . | . . Hover . | . . Flight . | . . Utility 2 | . 2 Device . | . . Storage 1 | . 1 Processor 1 | . 1 Hackware . | . . Protection . | . . Artifact . | . . Weapon . | . . Energy Gun . | . . Energy Cannon . | . . Ballistic Gun . | . . Ballistic Cannon . | . . Launcher . | . . Special Weapon . | . . Impact Weapon . | . . Slashing Weapon . | . . Piercing Weapon . | . . Special Melee Weapon . | . . Unidentified Prototypes . | . . Parts Lost 3 | . 3 Power . | . . Propulsion 1 | . 1 Utility . | . . Weapon 2 | . 2 Highest Loss Streak 3 | . 3 Average Slot Usage (%) 90 | . 90 Engine 14 | . 14 Leg 24 | . 24 Storage 22 | . 22 Processor 4 | . 4 Energy Gun 23 | . 23 Naked Turns . | . . Heaviest Build 15 | 11 15 Greatest Support 20 | 20 20 Greatest Overweight (x) 2 | . 2 Average Overweight (x) . | . . Largest Inventory Capacity 8 | 6 8 Average Capacity 7 | 6 7 Most Carried 7 | 6 7 Average Carried 5 | 6 5 Final Capacity 6 | 6 6 Final Carried 6 | 6 5 Class Distribution -------------------- 100% | Mutant Dominant Class ---------------- Mutant | -10/Materials Resources | -11 -10 ----------- Run | Scr Mat Matter Collected 269 | 200 69 Remotely . | . . Salvage Created 134 | . 134 Parts 12 | . 12 Haulers Intercepted . | . . Recyclers Shooed . | . . Parts Field Recycled . | . . Retrieved Matter . | . . Parts Self-Destructed . | . . Prevented . | . . Kills | -11 -10 ------- Run | Scr Mat Combat Hostiles Destroyed 7 | . 7 Guns 7 | . 7 Classes Destroyed 3 | . 3 Watcher 1 | . 1 Swarmer 6 | . 6 Grunt 1 | . 1 Best Kill Streak 4 | . 4 Combat Bots Only 3 | . 3 Max Kills in Single Turn 1 | . 1 Gunslinging . | . . Exploded . | . . Melee . | . . Uniques/NPCs Destroyed . | . . Combat | -11 -10 -------- Run | Scr Mat Damage Taken 590 | . 590 Core 257 | . 257 Absorbed by Shields . | . . Core Remaining (%) 100 | 100 . Volleys Fired 23 | . 23 Largest 2 | . 2 Hottest 80 | . 80 Shots Fired 46 | . 46 Gun 46 | . 46 Cannon . | . . Launcher . | . . Special . | . . Kinetic . | . . Thermal 46 | . 46 Explosive . | . . Electromagnetic . | . . Robot Hit Streak 8 | . 8 Robot Miss Streak 4 | . 4 Penetration Max . | . . Secondary Targets 2 | . 2 Max Gunslinging Chain 1 | . 1 Shots Hit Robots 25 | . 25 Core Hits 10 | . 10 Critical Hits . | . . Critical Kills . | . . Critical Parts Destroyed . | . . Melee Attacks . | . . Impact . | . . Slashing . | . . Piercing . | . . Sneak Attacks . | . . Combat Hostiles . | . . Follow-up Attacks . | . . Damage Inflicted 269 | . 269 Guns 265 | . 265 Cannons . | . . Explosions . | . . Melee . | . . Ramming 4 | . 4 Kinetic . | . . Thermal 265 | . 265 Explosive . | . . Electromagnetic . | . . Impact . | . . Slashing . | . . Piercing . | . . Highest Corruption . | . . Average Corruption . | . . Corruption Purged . | . . Overload Shots . | . . Overflow Damage . | . . Projectiles . | . . Explosions . | . . Melee . | . . Knockbacks . | . . Impact . | . . Kinetic . | . . Secondary . | . . Self-Inflicted Damage . | . . Shots . | . . Rammed 2 | . 2 Targets Rammed 3 | . 3 Kicked 1 | . 1 Crushed . | . . Highest Temperature 138 | . 138 Average Temperature 50 | . 50 Received Heat Transfer 255 | . 255 Siege Activations . | . . Robots Corrupted . | . . Combat Hostiles . | . . Parts Fried . | . . Impact Corruptions . | . . Robots Melted . | . . Combat Hostiles . | . . Parts Melted . | . . Heat Transferred 600 | . 600 Parts Sabotaged . | . . Parts Stolen . | . . Parts Stripped . | . . Power Chain Reactions . | . . Missiles Intercepted . | . . Alert | -11 -10 ------- Run | Scr Mat Peak Influence 207 | . 207 Initial . | . . Average 38 | . 41 Maximum Alert Level 1 | . 1 Low Security (%) 97 | 100 97 Level 1 2 | . 2 Level 2 . | . . Level 3 . | . . Level 4 . | . . Level 5 . | . . High Security . | . . Max Security . | . . Squads Dispatched 1 | . 1 Investigation . | . . Extermination . | . . Reinforcement 1 | . 1 Assault . | . . Garrison . | . . Intercept . | . . Construction Impeded . | . . Haulers Reinforced . | . . Stealth | -11 -10 --------- Run | Scr Mat Distress Signals 2 | . 2 Communications Jammed . | . . Distress Signals . | . . Times Spotted 16 | . 16 Peak Tracking Total 6 | . 6 Tactical Retreats . | . . Traps | -11 -10 ------- Run | Scr Mat Traps Triggered 1 | . 1 Indirectly . | . . Trap Hack Attempts . | . . Triggered . | . . Disarmed . | . . Reprogrammed . | . . Reused . | . . Traps Extracted . | . . Installed . | . . Triggered . | . . Machines | -11 -10 ---------- Run | Scr Mat Machines Disabled . | . . Max in Single Turn . | . . Machines Sabotaged . | . . Garrisons Compromised . | . . Overloaded Fab Kills . | . . Fab Network Shutdowns . | . . Hacking | -11 -10 --------- Run | Scr Mat Machines Accessed . | . . Terminals . | . . Fabricators . | . . Repair Stations . | . . Recycling Units . | . . Scanalyzers . | . . Garrison Access . | . . Total Hacks . | . . Successful . | . . Failed . | . . Catastrophic . | . . Database Lockouts . | . . Manual . | . . Terminals . | . . Fabricators . | . . Repair Stations . | . . Recycling Units . | . . Scanalyzers . | . . Garrison Access . | . . Terminal Hacks . | . . Fabricator Hacks . | . . Repair Station Hacks . | . . Recycling Unit Hacks . | . . Scanalyzer . | . . Garrison Access Hacks . | . . Unauthorized Hacks . | . . Terminals . | . . Fabricators . | . . Repair Stations . | . . Recycling Units . | . . Scanalyzers . | . . Garrison Access . | . . Data Cores Recovered . | . . Used . | . . Hacking Detections . | . . Full Trace Events . | . . Feedback Events . | . . Feedback Blocked . | . . Robot Schematics Acquired . | . . Robots Built . | . . Matter . | . . Time . | . . Total Robot Build Rating . | . . Part Schematics Acquired . | . . Parts Built . | . . Matter . | . . Time . | . . Total Part Build Rating . | . . Parts Repaired . | . . Time . | . . Parts Recycled . | . . Recycled Matter . | . . Retrieved Matter . | . . Retrieved Components . | . . Parts Scanalyzed . | . . Part Schematics Acquired . | . . Parts Damaged . | . . Bothacking | -11 -10 ------------ Run | Scr Mat Used RIF Installer . | . . Robots Hacked . | . . Non-combat . | . . Combat . | . . Robot Hacks Applied . | . . Relay Couplers Released . | . . Robots Rewired . | . . Allies Hacked . | . . Hacks Repelled . | . . Allies | -11 -10 -------- Run | Scr Mat Total Allies . | . . Largest Group . | . . Highest-Rated Group . | . . Highest-Rated Ally . | . . Total Orders . | . . Ally Attacks . | . . Total Damage . | . . Kills . | . . Allies Corrupted . | . . Allies Melted . | . . Intel | -11 -10 ------- Run | Scr Mat Robot Analysis Total . | . . Derelict Logs Recovered . | . . Drone Launches . | . . Drone Recoveries . | . . Exploration | -11 -10 ------------- Run | Scr Mat Turns Passed 537 | 42 495 Spaces Moved 374 | 36 338 Core 24 | . 24 Treads . | . . Legs 350 | 36 314 Wheels . | . . Hover . | . . Flight . | . . Fastest Speed 120 | 120 120 Average Speed 121 | 120 122 Slowest Speed 150 | 120 150 Overloaded Moves . | . . Propulsion Burnouts . | . . Robots Hopped . | . . Cave-ins Triggered . | . . Exploration Rate (%) 23 | 3 43 Regions Visited 1 Branch Regions . Pre-discovered Areas . | . . Known Exits Taken . | . . Unknown Exits Taken 1 | 1 . Scrap Searched . | . . Spaces Dug . | . . Terrain Destroyed . | . . Melee . | . . Projectile . | . . AOE . | . . Terrain Rammed . | . . Walls Destroyed . | . . Machines Disabled . | . . Actions | -11 -10 --------- Run | Scr Mat Total 410 | 35 375 Wait . | . . Move 373 | 35 338 Hop . | . . Pick Up 4 | . 4 Fast Attach 1 | . 1 Attach . | . . Detach . | . . Swap 1 | . 1 Drop 5 | . 5 Fire 23 | . 23 Melee . | . . Ram 1 | . 1 Kick 2 | . 2 Crush . | . . Escape Stasis . | . . Rewire . | . . Trap . | . . Miscellaneous . | . . Route ------- -11/Scrapyard -10/Materials (discovered 1 exit: *Min) History --------- Turn | Location | Event 1 | -11/Scrapyard | Discovered new exit (range 3) 43 | -11/Scrapyard | Entered Materials 300 | -10/Materials | Build established: Mutant 312 | -10/Materials | Discovered new exit (range 8) 488 | -10/Materials | Lost 3 parts (1n2w) 503 | -10/Materials | Core integrity fell below 50% 525 | -10/Materials | Core integrity fell below 20% 534 | -10/Materials | Identified exit to Mines 538 | -10/Materials | Destroyed by G-47 Trooper with Particle Gun Last Messages --------------- Acquired 17 matter. K-01 Serf collects debris. S-10 Pest destroyed. R-06 Scavenger collects Lgt. Ion Engine. Sml. Laser destroyed. Aluminum Leg destroyed. O-16 Technician: "IFF HANDSHAKE FAILED. SECURING TERMINAL." O-16 Technician destroyed. U-05 Engineer lays Concrete. T-07 Excavator is excavating. Triggered Blade Trap. Massive razor-sharp blades shoot up from within the floor. Aluminum Leg severed. U-05 Engineer lays Concrete. T-07 Excavator is excavating. U-05 Engineer builds a Wall. T-07 Excavator is excavating. U-05 Engineer lays Concrete. Slammed into K-01 Serf. EXIT=IDENTIFIED: MINES Map ----- +----------------------------------------------------+ | ???????????????% ????????????????????????????????? | | ???????????????= ????????????????????????????????? | | ???????????????%#####+##?????????????????????????? | | ???????????????%# ??????????????????????????? | | ??????????????#[# ??????????????????????????? | | ??????????????# # ???????????????????????????? | | #########?????# # ???????????????????????????? | | "T" !#??#### # ????????????????????????????? | | ####T## # ????????????????????????????? | | / # ?????????????????????????????? | | # # ?????????????????????????????? | | ###+##### ##/#?????????????????????????????? | | #?????????????????????????????? | | % ##+########### #?????????????????????????????? | | " $/#????????????# #?????????????????????????????? | | " ##????????????#+####??????????????????????????? | | " #?????????????# #??????????????????????????? | | " ###???????????# #??????????????????????????? | | " ############# #??????????????????????????? | | +? ]# #??????????????????????????? | | ######?!!! # #??????????????????????????? | | #???????!! # #??????????????????????????? | | ######???????!! # #??????????????????????????? | | #????????????? # #??????????????????????????? | | ######???????? # #########??????############# | | ##########+####/## @ ##+###?# | | #?# | | g k > #?# | | ### ut r #?# ######## | | ??# """ #########+## ## #?# # # | | ??# """ #??????????# "!" " ## #?# # # | | ??# """ #??????????#""!"!""## #?# # + | | ? + #??????????########## #?# + # | | " # #??????????# T ## ### # # | | " ### ## ###??????????# # ## # # | | ??? ## #????????????# """ %# " ] # # | | ????##?# #????????????# """""%+%"T # # | | ???????# ?????????????# """"" # # # | | ???????# ?????????????# """"" # |##+### # | | ???????# ?????????????# """ ####### ######### | | ???????# ?????????????# #?????# "" #??### | | ???????? ?????????????# #?????# """#??#! | | ??????????????????????# #?????# R"#??#! | | ??????????????????????# #?????# = """#??##!! | | ??????????????????????#########?????# ####???### | | ????????????????????????????????????# =#????????? | | ????????????????????????????????????#####????????? | | ?????????????????????????????????????????????????? | | ?????????????????????????????????????????????????? | | ?????????????????????????????????????????????????? | +----------------------------------------------------+ Best States ------------- Heat Dissipation 25 Energy Generation 10 Energy Capacity 250 Matter Stores 300 Matter Capacity 300 Sight Range 16 Terrain Scan Density 10 Evasion (%) 40 Item Schematics ----------------- None Robot Schematics ------------------ None Fabricated ------------ Nothing Alien Tech Used ----------------- None Achievements -------------- None Challenges ------------ None Game ------ Seed TrapAluminumThrower Manual? 0 Play Time 00:20:12 Cumulative 9.0 hours Start 2020.09.21 @ 11:20:53 End 2020.09.21 @ 11:40:42 Sessions 1 Manual Loads 0 Difficulty Rogue Special Mode None Game No. 25 Rogue 25 Adventurer 0 Explorer 0 Win Type - Total 0 Types 0/0/0/0/0/0/0/0/0 Lore% 17 Gallery% 20 Achievement% 21 Wizard Run 0 Options --------- ASCII 1 Keyboard 1 Movement Arrows Keybinds 0 Fullscreen 2 Font 16/SmallcapsGlow Map View 90x56 Tactical HUD 0 Map Filters BRIGHTNESS(90)|SATURATION(66) Filters BRIGHTNESS(90)|SATURATION(66) Steam X RUN: c8d1f228-7b3d-4d58-b187-e9c5d91d4fed